bitfinex-derivatives/quotes_BNBF0:USTF0_20250115
["timestamp","ask_amount","ask_price","bid_price","bid_amount"]
[1736917088474,1.06793849,702.6,701.73,0.887]
[1736917089481,0.28464078,702.64,701.73,0.887]
[1736917103892,1.06793849,702.62,701.73,0.887]
[1736917108388,0.28464078,702.64,701.73,0.887]
[1736917108990,1.06743452,702.62,701.73,0.887]
[1736917110197,1.06743452,702.63,701.73,0.887]
[1736917110794,1.06743452,702.62,701.73,0.887]
[1736917114998,1.06743452,702.62,701.73,0.887]
[1736917115197,1.3520753,702.64,701.73,0.887]
[1736917117196,0.28464078,702.64,701.73,0.887]
[1736917118194,1.3520753,702.64,701.73,0.887]
[1736917119397,0.28464078,702.64,701.73,0.887]
[1736917129561,1.06743452,702.62,701.73,0.887]
[1736917132202,1.06743452,702.6,701.73,0.887]
[1736917132907,0.28464078,702.64,701.73,0.887]
[1736917151528,1.3520753,702.64,701.73,0.887]
[1736917153523,1.06743452,702.63,701.73,0.887]
[1736917154429,1.3520753,702.64,701.73,0.887]
[1736917157333,1.06743452,702.63,701.73,0.887]
[1736917158234,0.28464078,702.64,701.73,0.887]
[1736917183844,0.26177231,702.63,701.73,0.887]
[1736917184046,0.26177231,702.62,701.73,0.887]
[1736917184249,0.26177231,702.61,701.73,0.887]
[1736917185550,0.28464888,702.62,701.73,0.887]
[1736917193250,1.06743452,702.61,701.73,0.887]
[1736917193452,0.28465698,702.6,701.73,0.887]
[1736917195455,0.26177202,702.59,701.73,0.887]
[1736917195656,0.28466509,702.58,701.73,0.887]
[1736917195956,0.26177201,702.57,701.73,0.887]
[1736917196255,0.28467319,702.56,701.73,0.887]
[1736917196561,1.06743452,702.49,701.73,0.887]
[1736917197453,0.28467319,702.56,701.73,0.887]
[1736917197454,1.06743452,702.47,701.73,0.887]
[1736917198653,0.28467319,702.56,701.73,0.887]
[1736917198654,1.06743452,702.46,701.73,0.887]
[1736917199852,1.06743452,702.43,701.73,0.887]
[1736917200761,1.06743452,702.48,701.73,0.887]
[1736917201595,0.28467319,702.56,701.73,0.887]
[1736917201596,1.06743452,702.47,701.73,0.887]
[1736917202265,1.06743452,702.46,701.73,0.887]
[1736917203462,1.06743452,702.43,701.73,0.887]
[1736917204462,1.06743452,702.48,701.73,0.887]
[1736917206863,1.06743452,702.47,701.73,0.887]
[1736917207967,1.06743452,702.45,701.73,0.887]
[1736917209067,1.06743452,702.44,701.73,0.887]
[1736917212467,1.06743452,702.43,701.73,0.887]
[1736917214571,1.06743452,702.36,701.73,0.887]
[1736917217171,1.06743452,702.35,701.73,0.887]
[1736917218072,0.28467319,702.56,701.73,0.887]
[1736917218267,0.26175133,702.55,701.73,0.887]
[1736917219368,0.26175213,702.54,701.73,0.887]
[1736917219565,0.26175213,702.55,701.73,0.887]
[1736917219768,1.06797118,702.39,701.73,0.887]
[1736917221173,1.06797118,702.44,701.73,0.887]
[1736917222176,0.28467319,702.56,701.73,0.887]
[1736917223274,1.06797118,702.48,701.73,0.887]
[1736917223975,1.06797118,702.53,701.73,0.887]
[1736917224975,0.28467319,702.56,701.73,0.887]
[1736917284018,1.06797118,702.55,701.73,0.887]
[1736917285219,1.06797118,702.54,701.73,0.887]
[1736917286720,1.06797118,702.55,701.73,0.887]
[1736917288021,0.28467319,702.56,701.73,0.887]
[1736917291724,1.35264437,702.56,701.73,0.887]
[1736917292823,1.06797118,702.55,701.73,0.887]
[1736917293122,0.28467319,702.56,701.73,0.887]
[1736917305828,1.06742571,702.78,701.73,0.887]
[1736917306134,1.28091085,703.59,701.73,0.887]
[1736917306135,1.06742571,702.59,701.73,0.887]
[1736917307236,1.06742571,702.61,701.73,0.887]
[1736917307634,0.26177305,702.6,701.73,0.887]
[1736917308031,1.06742571,702.55,701.73,0.887]
[1736917309635,1.06742571,702.56,701.73,0.887]
[1736917310733,1.06742571,702.61,701.73,0.887]
[1736917311641,1.06742571,702.64,701.73,0.887]
[1736917311840,0.26177222,702.63,701.73,0.887]
[1736917312837,1.32919793,702.63,701.73,0.887]
[1736917313037,0.26177222,702.62,701.73,0.887]
[1736917314345,0.26177222,702.61,701.73,0.887]
[1736917314555,1.06742571,702.66,701.73,0.887]
[1736917314738,0.26177306,702.65,701.73,0.887]
[1736917315844,0.26177394,702.64,701.73,0.887]
[1736917316043,0.26177394,702.63,701.73,0.887]
[1736917316241,0.26177394,702.62,701.73,0.887]
[1736917316445,0.26177394,702.61,701.73,0.887]
[1736917316688,0.26177394,702.6,701.73,0.887]
[1736917316846,0.26177394,702.59,701.73,0.887]
[1736917317046,1.06742571,702.65,701.73,0.887]
[1736917317047,0.26177394,702.58,701.73,0.887]
[1736917317242,1.06742571,702.65,701.73,0.887]
[1736917317447,0.26176782,702.64,701.73,0.887]
[1736917318448,0.26176782,702.63,701.73,0.887]
[1736917318647,0.26177203,702.62,701.73,0.887]
[1736917318844,0.26177203,702.61,701.73,0.887]
[1736917319044,0.26177203,702.6,701.73,0.887]
[1736917319248,0.26177203,702.59,701.73,0.887]
[1736917319445,0.26177115,702.58,701.73,0.887]
[1736917319647,0.26177115,702.57,701.73,0.887]
[1736917319846,0.26177115,702.56,701.73,0.887]
[1736917320051,1.06742571,702.65,701.73,0.887]
[1736917320253,0.2617707,702.64,701.73,0.887]
[1736917321254,0.2617707,702.63,701.73,0.887]
[1736917321451,0.2617707,702.62,701.73,0.887]
[1736917321649,0.2617707,702.61,701.73,0.887]
[1736917321856,0.2617707,702.6,701.73,0.887]
[1736917322053,0.2617707,702.59,701.73,0.887]
[1736917322249,0.2617707,702.58,701.73,0.887]
[1736917322461,0.2617707,702.57,701.73,0.887]
[1736917322657,1.06742571,702.66,701.73,0.887]
[1736917322852,0.26177014,702.65,701.73,0.887]
[1736917323459,0.26177048,702.64,701.73,0.887]
[1736917325358,0.26177048,702.63,701.73,0.887]
[1736917325557,0.26177048,702.62,701.73,0.887]
[1736917325758,0.26177048,702.61,701.73,0.887]
[1736917325959,2.3311502,703.74,701.73,0.887]
[1736917326159,1.06438654,702.63,701.73,0.887]
[1736917326458,0.26176691,702.62,701.73,0.887]
[1736917326855,0.2617674,702.61,701.73,0.887]
[1736917327054,0.2617674,702.6,701.73,0.887]
[1736917327257,0.2617674,702.59,701.73,0.887]
[1736917327464,0.2617674,702.58,701.73,0.887]
[1736917327659,0.2617674,702.57,701.73,0.887]
[1736917327859,0.2617674,702.6,701.73,0.887]
[1736917328059,0.2617674,702.59,701.73,0.887]
[1736917328459,1.06438654,702.57,701.73,0.887]
[1736917328659,0.2617674,702.56,701.73,0.887]
[1736917328860,1.06438654,702.57,701.73,0.887]
[1736917329061,0.26176656,702.56,701.73,0.887]
[1736917329861,0.26176656,702.55,701.73,0.887]
[1736917330155,0.26176656,702.54,701.73,0.887]
[1736917330461,0.26176656,702.53,701.73,0.887]
[1736917330686,1.06438654,702.59,701.73,0.887]
[1736917330856,0.28465698,702.6,701.73,0.887]
[1736917330857,1.06438654,702.57,701.73,0.887]
[1736917331061,0.2617669,702.56,701.73,0.887]
[1736917332957,1.06438654,702.55,701.73,0.887]
[1736917333760,1.06438654,702.56,701.73,0.887]
[1736917337064,1.06438654,702.54,701.73,0.887]
[1736917338168,1.06438654,702.51,701.73,0.887]
[1736917339063,1.06438654,702.49,701.73,0.887]
[1736917340066,1.06438654,702.5,701.73,0.887]
[1736917341168,1.06438654,702.49,701.73,0.887]
[1736917342168,1.06438654,702.51,701.73,0.887]
[1736917344468,1.06438654,702.52,701.73,0.887]
[1736917345875,0.28465698,702.6,701.73,0.887]
[1736917345876,1.06438654,702.56,701.73,0.887]
[1736917346869,0.28465698,702.6,701.73,0.887]
[1736917373994,1.06251094,703.03,701.73,0.887]
[1736917374190,0.54612657,703.02,701.73,0.887]
[1736917374494,0.54613062,703.01,701.73,0.887]
[1736917374695,0.54613467,703.0,701.73,0.887]
[1736917374995,0.54613871,702.99,701.73,0.887]
[1736917375235,0.26163965,702.98,701.73,0.887]
[1736917375390,0.28449906,702.99,701.73,0.887]
[1736917377597,0.26164916,702.98,701.73,0.887]
[1736917377793,0.28449906,702.99,701.73,0.887]
[1736917384103,1.06251094,702.98,701.73,0.887]
[1736917384996,0.26163891,702.97,701.73,0.887]
[1736917385203,0.28449906,702.99,701.73,0.887]
[1736917390105,1.34701,702.99,701.73,0.887]
[1736917391311,1.06251094,702.98,701.73,0.887]
[1736917392006,1.34701405,702.98,701.73,0.887]
[1736917392611,1.06251094,702.97,701.73,0.887]
[1736917393805,1.06251094,702.96,701.73,0.887]
[1736917395110,0.26162984,702.95,701.73,0.887]
[1736917395514,1.06251094,702.86,701.73,0.887]
[1736917396610,1.06251094,702.81,701.76,1.05744749]
[1736917397912,1.06251094,702.82,701.76,1.219]
[1736917400609,1.06251094,702.8,701.76,1.219]
[1736917401913,1.06251094,702.8,701.76,2.27644749]
[1736917402832,1.06251094,702.8,701.77,1.05744749]
[1736917405117,1.06251094,702.82,701.76,1.219]
[1736917406317,1.06251094,702.9,701.76,1.219]
[1736917407319,1.06251094,702.91,701.76,1.219]
[1736917408719,1.06251094,702.89,701.76,1.219]
[1736917411721,1.06251094,702.88,701.76,1.219]
[1736917412924,1.06251094,702.87,701.76,1.219]
[1736917414624,1.06251094,702.85,701.76,1.219]
[1736917416535,0.26164485,702.84,701.76,1.219]
[1736917416825,1.06251094,702.78,701.76,1.219]
[1736917417724,1.06251094,702.71,701.76,2.27644749]
[1736917418725,1.06251094,702.93,701.76,1.219]
[1736917418925,0.28452739,702.92,701.76,1.219]
[1736917419827,1.06251094,702.88,701.76,1.219]
[1736917420020,0.28454764,702.87,701.76,1.219]
[1736917420926,1.06251094,702.77,701.76,1.219]
[1736917422026,0.28454764,702.87,701.76,1.219]
[1736917422027,1.06251094,702.8,701.76,1.219]
[1736917422728,0.28458003,702.79,701.76,1.219]
[1736917425329,0.26169173,702.78,701.76,1.219]
[1736917425629,0.28458812,702.77,701.76,1.219]
[1736917425822,0.26169173,702.76,701.76,1.219]
[1736917426027,0.28459622,702.75,701.76,1.219]
[1736917426227,1.32420267,702.74,701.76,1.219]
[1736917426427,0.26169173,702.73,701.76,1.219]
[1736917426624,0.28460837,702.72,701.76,1.219]
[1736917443442,0.26170299,702.71,701.76,1.219]
[1736917443642,0.28460837,702.72,701.76,1.219]
[1736917443847,0.26170115,702.71,701.76,1.219]
[1736917444041,0.28460837,702.72,701.76,1.219]
[1736917462447,1.34711931,702.72,701.76,1.219]
[1736917463449,1.06251094,702.71,701.76,1.219]
[1736917464453,0.28460837,702.72,701.76,1.219]
[1736917465454,1.06251094,702.71,701.76,1.219]
[1736917466261,1.06251094,702.7,701.76,1.219]
[1736917467763,0.28460837,702.72,701.76,1.219]
[1736917468565,1.06652779,702.7,701.76,1.219]
[1736917469657,1.06652779,702.69,701.76,1.219]
[1736917470962,1.06652779,702.65,701.76,1.219]
[1736917474270,1.06652779,702.64,701.76,1.219]
[1736917475173,0.28460837,702.72,701.76,1.219]
[1736917475174,1.06652779,702.63,701.76,1.219]
[1736917477474,0.28460837,702.72,701.76,1.219]
[1736917477475,1.06652779,702.7,701.76,1.219]
[1736917478569,1.06652779,702.69,701.76,1.219]
[1736917479575,1.06652779,702.68,701.76,1.219]
[1736917484971,1.06652779,702.69,701.76,1.219]
[1736917485978,1.06652779,702.68,701.76,1.219]
[1736917488281,1.06652779,702.64,701.76,1.219]
[1736917490279,0.28460837,702.72,701.76,1.219]
[1736917490280,1.06652779,702.63,701.76,1.219]
[1736917491181,1.06652779,702.64,701.76,1.219]
[1736917493584,1.06652779,702.65,701.76,1.219]
[1736917494780,1.06652779,702.64,701.76,1.219]
[1736917495983,1.06652779,702.67,701.76,1.219]
[1736917496682,0.28460837,702.72,701.76,1.219]
[1736917497283,1.06774956,702.66,701.76,1.219]
[1736917499283,1.06774956,702.65,701.76,1.219]
[1736917501780,0.28460837,702.72,701.76,1.219]
[1736917501781,1.06774956,702.63,701.76,1.219]
[1736917502484,1.06774956,702.58,701.76,1.219]
[1736917503485,1.35241465,702.58,701.76,1.219]
[1736917503986,0.28466509,702.58,701.76,1.219]
[1736917531612,0.26183588,702.57,701.76,1.219]
[1736917532714,0.28467724,702.55,701.76,1.219]
[1736917532912,0.26183588,702.54,701.76,1.219]
[1736917533208,0.28468535,702.53,701.76,1.219]
[1736917533513,0.26183588,702.52,701.76,1.219]
[1736917533815,0.28469345,702.51,701.76,1.219]
[1736917534113,0.26183588,702.5,701.76,1.219]
[1736917534305,0.28469345,702.51,701.76,1.219]
[1736917534510,0.26186159,702.5,701.76,1.219]
[1736917534709,0.28470156,702.49,701.76,1.219]
[1736917534911,0.26186159,702.48,701.76,1.219]
[1736917535111,0.28470966,702.47,701.76,1.219]
[1736917535411,0.26186159,702.46,701.76,1.219]
[1736917536013,0.28471777,702.45,701.76,1.219]
[1736917536211,0.26186159,702.44,701.76,1.219]
[1736917536411,0.28472588,702.43,701.76,1.219]
[1736917536611,0.26186159,702.42,701.76,1.219]
[1736917536815,0.28473398,702.41,701.76,1.219]
[1736917537015,0.26186159,702.4,701.76,1.219]
[1736917537211,0.28474209,702.39,701.76,1.219]
[1736917537410,0.26186159,702.38,701.76,1.219]
[1736917538420,0.2847502,702.37,701.76,1.219]
[1736917538619,0.26186159,702.36,701.76,1.219]
[1736917539413,0.28475831,702.35,701.76,1.219]
[1736917540019,0.26188755,702.34,701.76,1.219]
[1736917540213,0.28476642,702.33,701.76,1.219]
[1736917540413,0.26188755,702.32,701.76,1.219]
[1736917540617,0.28477452,702.31,701.76,1.219]
[1736917551227,0.26189873,702.3,701.76,1.219]
[1736917551427,0.28478263,702.29,701.76,1.219]
[1736917551625,0.26189873,702.28,701.76,1.219]
[1736917551828,0.28479074,702.27,701.76,1.219]
[1736917554027,0.26189912,702.26,701.76,1.219]
[1736917554220,0.28479074,702.27,701.76,1.219]
[1736917555025,0.26189961,702.26,701.76,1.219]
[1736917555528,1.06774956,702.3,701.76,1.219]
[1736917555529,0.28479886,702.25,701.76,1.219]
[1736917558130,0.26189877,702.24,701.76,1.219]
[1736917558329,0.28480697,702.23,701.76,1.219]
[1736917559825,0.26190057,702.22,701.76,1.219]
[1736917560131,0.28481508,702.21,701.76,1.219]
[1736917560330,0.26190057,702.2,701.76,1.219]
[1736917560529,0.28482319,702.19,701.76,1.219]
[1736917607059,1.06774956,702.49,701.76,1.219]
[1736917607255,0.26178255,702.48,701.76,1.219]
[1736917608260,1.06774956,702.49,701.76,1.219]
[1736917608462,0.26178353,702.48,701.76,1.219]
[1736917609982,0.26179358,702.47,701.76,1.219]
[1736917610166,0.26179358,702.46,701.76,1.219]
[1736917610368,1.06774956,702.49,701.76,1.219]
[1736917610566,0.26179417,702.48,701.76,1.219]
[1736917611163,1.06774956,702.46,701.76,1.219]
[1736917611367,0.26179417,702.45,701.76,1.219]
[1736917612169,1.06774956,702.43,701.76,1.219]
[1736917613164,1.06774956,702.42,701.76,1.219]
[1736917614169,1.06774956,702.41,701.76,1.219]
[1736917615171,1.06774956,702.6,701.76,1.219]
[1736917615172,1.06774956,702.42,701.76,1.219]
[1736917616371,1.06774956,702.4,701.76,1.219]
[1736917617172,1.06774956,702.42,701.76,1.219]
[1736917618366,1.06774956,702.46,701.76,1.219]
[1736917619277,1.06774956,702.44,701.76,1.219]
[1736917620268,1.06774956,702.41,701.76,1.219]
[1736917621373,1.06774956,702.66,701.76,1.219]
[1736917621374,1.06774956,702.4,701.76,1.219]
[1736917622274,1.06774956,702.37,701.76,1.219]
[1736917623374,1.06774956,702.36,701.76,1.219]
[1736917624574,1.06774956,702.37,701.76,1.219]
[1736917626079,2.17998869,703.04,701.76,1.219]
[1736917626080,1.06774956,702.32,701.76,1.219]
[1736917627982,1.06774956,702.35,701.76,1.219]
[1736917628874,1.06774956,702.36,701.76,1.219]
[1736917629878,1.06774956,702.37,701.76,1.219]
[1736917633080,1.06774956,702.6,701.76,1.219]
[1736917633081,0.28475425,702.36,701.76,1.219]
[1736917636683,1.06774956,702.35,701.76,1.219]
[1736917636985,0.28476236,702.34,701.76,1.219]
[1736917642388,0.26187029,702.33,701.76,1.219]
[1736917643192,0.28477047,702.32,701.76,1.219]
[1736917643391,0.26187029,702.31,701.76,1.219]
[1736917643593,1.32961985,702.31,701.76,1.219]
[1736917643792,0.54665561,702.3,701.76,1.219]
[1736917643992,0.28477858,702.3,701.76,1.219]
[1736917651800,0.26191091,702.29,701.76,1.219]
[1736917652001,0.54669677,702.28,701.76,1.219]
[1736917652299,0.54670082,702.27,701.76,1.219]
[1736917652506,1.06774956,702.21,701.76,1.219]
[1736917652703,0.54672921,702.2,701.76,1.219]
[1736917652901,0.54673327,702.19,701.76,1.219]
[1736917653100,1.06774956,702.21,701.76,1.219]
[1736917653101,0.54673733,702.18,701.76,1.219]
[1736917653299,0.54674138,702.17,701.76,1.219]
[1736917653497,1.06774956,702.21,701.76,1.219]
[1736917653498,0.28483536,702.16,701.76,1.219]
[1736917653803,0.26191897,702.15,701.76,1.219]
[1736917654199,0.28484347,702.14,701.76,1.219]
[1736917654397,0.26191897,702.13,701.76,1.219]
[1736917654802,0.2619291,702.12,701.76,1.219]
[1736917655102,0.28484347,702.14,701.76,1.219]
[1736917655304,0.26192752,702.13,701.76,1.219]
[1736917655603,0.26192816,702.12,701.76,1.219]
[1736917655805,0.28484347,702.14,701.76,1.219]
[1736917656001,0.26192743,702.13,701.76,1.219]
[1736917656208,0.54677496,702.13,701.76,1.219]
[1736917656429,0.54677902,702.12,701.76,1.219]
[1736917656602,0.54678307,702.11,701.76,1.219]
[1736917656805,0.2848597,702.1,701.76,1.219]
[1736917661202,0.26199368,702.09,701.76,1.219]
[1736917662805,0.28486782,702.08,701.76,1.219]
[1736917663204,0.26198926,702.07,701.76,1.219]
[1736917664009,0.28487593,702.06,701.76,1.219]
[1736917664311,0.26198952,702.05,701.76,1.219]
[1736917664609,0.28488405,702.04,701.76,1.219]
[1736917666305,0.26199461,702.03,701.76,1.219]
[1736917666610,0.28489216,702.02,701.76,1.219]
[1736917666804,0.26199461,702.01,701.76,1.219]
[1736917667010,0.28490028,702.0,701.76,1.219]
[1736917703542,0.28490028,702.0,701.76,1.219]
[1736917744170,0.26196671,701.99,701.76,1.219]
[1736917744373,0.2849084,701.98,701.76,1.219]
[1736917749972,0.2849084,701.98,701.76,0.5359447]
[1736917750175,0.2849084,701.98,700.69,1.06192036]
[1736917750375,0.2849084,701.98,700.7,1.06192036]
[1736917751380,0.2849084,701.98,699.87,2.1680874]
[1736917751381,0.2849084,701.98,700.72,1.06192036]
[1736917751782,0.26196801,701.97,700.72,1.06192036]
[1736917752280,0.28491651,701.96,700.72,1.06192036]
[1736917752481,1.34822365,701.96,700.77,1.06192036]
[1736917753184,1.06330714,701.93,700.78,1.06192036]
[1736917753380,1.06330714,701.93,700.78,2.03292036]
[1736917754884,1.06330714,701.92,700.78,0.971]
[1736917759391,1.06330714,701.91,700.78,0.971]
[1736917760488,1.34822365,701.96,700.78,0.971]
[1736917761595,1.06330714,701.95,700.78,0.971]
[1736917762290,1.34822771,701.95,700.78,0.971]
[1736917764398,0.28492057,701.95,700.78,0.971]
[1736917768401,1.06330714,701.88,700.78,0.971]
[1736917769104,0.28495305,701.87,700.78,0.971]
[1736917771507,1.06330714,701.85,700.78,0.971]
[1736917772204,1.06330714,701.86,700.78,0.971]
[1736917773405,1.06330714,701.84,700.78,0.971]
[1736917774705,1.06330714,701.86,700.78,0.971]
[1736917775802,0.28495305,701.87,700.78,0.971]
[1736917782909,0.2620853,701.86,700.78,0.971]
[1736917783112,0.28496523,701.84,700.78,0.971]
[1736917783311,0.2620853,701.83,700.78,0.971]
[1736917783513,0.28497741,701.81,700.78,0.971]
[1736917784114,0.26209739,701.8,700.78,0.971]
[1736917784414,0.28498959,701.78,700.78,0.971]
[1736917784711,0.26209739,701.77,700.78,0.971]
[1736917784914,0.28500178,701.75,700.78,0.971]
[1736917785110,0.26209739,701.74,700.78,0.971]
[1736917785307,0.2850099,701.73,700.78,0.971]
[1736917789012,0.26227989,701.72,700.78,0.971]
[1736917789215,1.06330714,701.63,700.78,0.971]
[1736917790016,0.26227736,701.62,700.78,0.971]
[1736917790211,0.28506271,701.6,700.78,0.971]
[1736917790416,0.26226563,701.59,700.78,0.971]
[1736917791418,0.2850749,701.57,700.78,0.971]
[1736917791817,0.26223797,701.56,700.78,0.971]
[1736917792018,0.28508303,701.55,700.78,0.971]
[1736917792417,0.26223917,701.54,700.78,0.971]
[1736917792613,0.28509115,701.53,700.78,0.971]
[1736917792821,0.26223917,701.52,700.78,0.971]
[1736917793118,0.28509928,701.51,700.78,0.971]
[1736917793318,0.2622357,701.5,700.78,0.971]
[1736917793619,0.28510741,701.49,700.78,0.971]
[1736917793821,0.2622357,701.48,700.78,0.971]
[1736917794119,0.28511554,701.47,700.78,0.971]
[1736917794419,0.2622357,701.46,700.78,0.971]
[1736917794617,0.28512367,701.45,700.78,0.971]
[1736917794814,0.2622357,701.44,700.78,0.971]
[1736917795019,0.2851318,701.43,700.78,0.971]
[1736917795218,0.2622357,701.42,700.78,0.971]
[1736917795419,0.28513993,701.41,700.78,0.971]
[1736917796320,0.26223482,701.4,700.78,0.971]
[1736917796519,0.28514806,701.39,700.78,0.971]
[1736917801522,0.26223093,701.38,700.78,0.971]
[1736917801717,0.28515619,701.37,700.78,0.971]
[1736917802024,0.26223093,701.36,700.78,0.971]
[1736917802422,0.28516432,701.35,700.78,0.971]
[1736917802722,0.26223093,701.34,700.78,0.971]
[1736917803323,0.26222079,701.33,700.78,0.971]
[1736917803519,0.26221854,701.32,700.78,0.971]
[1736917803715,0.54739913,701.31,700.78,0.971]
[1736917803916,0.26222334,701.3,700.78,0.971]
[1736917805423,0.28518872,701.29,700.78,0.971]
[1736917805623,0.26222334,701.28,700.78,0.971]
[1736917806118,0.26222502,701.27,700.78,0.971]
[1736917808723,0.26223189,701.26,700.78,0.971]
[1736917808924,0.26223189,701.25,700.78,0.971]
[1736917809124,0.26223189,701.24,700.78,0.971]
[1736917809326,0.26223189,701.23,700.78,0.971]
[1736917809626,0.26223189,701.22,700.78,0.971]
[1736917809827,0.26223189,701.21,700.78,0.971]
[1736917810029,0.26223189,701.2,700.78,0.971]
[1736917810225,0.26223189,701.19,700.78,0.971]
[1736917810420,0.26223189,701.18,700.78,0.971]
[1736917810621,0.26223189,701.17,700.78,0.971]
[1736917810926,0.28519279,701.28,700.78,0.971]
[1736917811127,0.26222873,701.27,700.78,0.971]
[1736917811426,0.26222864,701.26,700.78,0.971]
[1736917811728,0.26222864,701.25,700.78,0.971]
[1736917811925,0.26222864,701.24,700.78,0.971]
[1736917812227,0.26222905,701.23,700.78,0.971]
[1736917812426,0.26222905,701.22,700.78,0.971]
[1736917812626,0.26222905,701.21,700.78,0.971]
[1736917812823,0.26222905,701.2,700.78,0.971]
[1736917813021,0.26222905,701.19,700.78,0.971]
[1736917813226,0.26222905,701.18,700.78,0.971]
[1736917813428,0.28519279,701.28,700.78,0.971]
[1736917813621,0.26222782,701.27,700.78,0.971]
[1736917814330,0.26222216,701.26,700.78,0.971]
[1736917814629,0.26222216,701.25,700.78,0.971]
[1736917814823,0.26222216,701.24,700.78,0.971]
[1736917815033,0.26222216,701.23,700.78,0.971]
[1736917815329,0.26221645,701.22,700.78,0.971]
[1736917815627,0.28519279,701.28,700.78,0.971]
[1736917815824,0.26221604,701.27,700.78,0.971]
[1736917816826,0.28519279,701.28,700.78,0.971]
[1736917818030,0.26222126,701.27,700.78,0.971]
[1736917818231,0.28519279,701.28,700.78,0.971]
[1736917818731,0.26221668,701.27,700.78,0.971]
[1736917819731,0.28519279,701.28,700.78,0.971]
[1736917819926,0.26222432,701.27,700.78,0.971]
[1736917820826,1.06109193,701.24,700.78,0.971]
[1736917821029,0.28519279,701.28,700.78,0.971]
[1736917821226,0.26222435,701.27,700.78,0.971]
[1736917821830,0.28519279,701.28,700.78,0.971]
[1736917822028,1.06648443,701.24,700.78,0.971]
[1736917823232,1.06648443,701.22,700.78,0.971]
[1736917824131,1.06648443,701.19,700.78,0.971]
[1736917825125,1.06648443,701.16,700.78,0.971]
[1736917826135,1.06648443,701.13,700.78,0.971]
[1736917828432,1.06648443,701.1,700.78,0.971]
[1736917830139,1.06648443,701.2,700.78,0.971]
[1736917831439,1.06648443,701.21,700.78,0.971]
[1736917832340,1.06648443,701.22,700.78,0.971]
[1736917833541,1.06648443,701.27,700.78,0.971]
[1736917834541,1.06648443,701.26,700.78,0.971]
[1736917835445,0.28519279,701.28,700.78,0.971]
[1736917839945,1.06648443,701.25,700.78,0.971]
[1736917840947,1.06648443,701.26,700.78,0.971]
[1736917841746,1.06648443,701.25,700.78,0.971]
[1736917843650,0.28520905,701.24,700.78,0.971]
[1736917846252,1.35169348,701.24,700.78,0.971]
[1736917847150,1.06648443,701.2,700.78,0.971]
[1736917847350,0.28522939,701.19,700.78,0.971]
[1736917849154,1.35171382,701.19,700.78,0.971]
[1736917850249,1.06648443,701.18,700.78,0.971]
[1736917850455,1.35171789,701.18,700.78,0.971]
[1736917851455,0.28523346,701.18,700.78,0.971]
[1736917878682,0.26226508,701.17,700.78,0.971]
[1736917882486,0.28523346,701.18,700.78,0.971]
[1736917882687,0.26226984,701.17,700.78,0.971]
[1736917885190,0.28523346,701.18,700.78,0.971]
[1736917897102,0.26229899,701.17,700.78,0.971]
[1736917899103,0.28523346,701.18,700.78,0.971]
[1736917899304,0.26229619,701.17,700.78,0.971]
[1736917899500,0.28523346,701.18,700.78,0.971]
[1736917900306,0.26229441,701.17,700.78,0.971]
[1736917902109,0.26229325,701.16,700.78,0.971]
[1736917902312,0.26229325,701.15,700.78,0.971]
[1736917902607,0.26229325,701.14,700.78,0.971]
[1736917902812,0.26229809,701.13,700.78,0.971]
[1736917903006,0.28523346,701.18,700.78,0.971]
[1736917903205,0.26229788,701.17,700.78,0.971]
[1736917904708,0.28523346,701.18,700.78,0.971]